bitfinex/quotes_BTCUSD_20241206
["timestamp","ask_amount","ask_price","bid_price","bid_amount"]
[1733523794604,0.56054298,100540.0,100530.0,0.1284368]
[1733523794824,0.55154298,100540.0,100530.0,0.1274368]
[1733523795052,0.56454298,100540.0,100530.0,0.1274368]
[1733523795759,0.56435113,100540.0,100530.0,0.1274368]
[1733523798912,0.56739379,100540.0,100530.0,0.1274368]
[1733523800696,0.56913159,100540.0,100530.0,0.1274368]
[1733523800916,0.56915706,100540.0,100530.0,0.1274368]
[1733523805142,0.15,100530.0,100510.0,0.0008685]
[1733523805375,0.71917976,100520.0,100510.0,0.0774685]
[1733523805614,0.53925211,100520.0,100510.0,0.0774685]
[1733523807594,0.54825211,100520.0,100510.0,0.0774685]
[1733523807813,0.55225211,100520.0,100510.0,0.0774685]
[1733523810276,0.55225211,100520.0,100510.0,0.0008685]
[1733523810480,0.55225211,100520.0,100510.0,0.0822685]
[1733523811100,1.09935211,100520.0,100510.0,0.0822685]
[1733523812187,1.11179807,100520.0,100510.0,0.0822685]
[1733523815290,1.60369457,100520.0,100510.0,0.0822685]
[1733523815504,1.14504017,100520.0,100510.0,0.0822685]
[1733523816799,1.14804985,100520.0,100510.0,0.08517377]
[1733523817046,1.14804985,100520.0,100510.0,0.0822685]
[1733523822034,1.60731899,100520.0,100510.0,0.0822685]
[1733523822239,1.14833185,100520.0,100510.0,0.0822685]
[1733523823115,1.15006905,100520.0,100510.0,0.0822685]
[1733523825184,1.14705937,100520.0,100510.0,0.0822685]
[1733523826529,1.14706109,100520.0,100510.0,0.0822685]
[1733523827145,1.14706109,100520.0,100510.0,0.1292685]
[1733523827578,1.60605086,100520.0,100510.0,0.1292685]
[1733523827793,1.14706109,100520.0,100510.0,0.1292685]
[1733523829277,0.59996109,100520.0,100510.0,0.1292685]
[1733523829494,0.56667886,100520.0,100510.0,0.1292685]
[1733523829699,0.56525809,100520.0,100510.0,0.1292685]
[1733523829958,0.56525809,100520.0,100510.0,0.13217479]
[1733523837533,0.58825809,100520.0,100510.0,0.13217479]
[1733523840608,0.58325809,100520.0,100510.0,0.13217479]
[1733523847045,0.56025809,100520.0,100510.0,0.13217479]
[1733523850620,0.38892283,100520.0,100510.0,0.13217479]
[1733523850861,0.38892283,100520.0,100510.0,0.21059556]
[1733523850862,0.56521591,100520.0,100510.0,0.21059556]
[1733523851078,0.42010739,100520.0,100510.0,0.21059556]
[1733523851298,0.22229958,100530.0,100520.0,0.124]
[1733523851516,0.08892917,100530.0,100520.0,0.15242077]
[1733523851736,0.08892917,100530.0,100520.0,0.15530765]
[1733523851989,0.22403738,100540.0,100530.0,0.124]
[1733523852200,0.47406689,100540.0,100530.0,0.124]
[1733523852633,0.47406689,100540.0,100530.0,0.12688688]
[1733523852844,0.34069648,100540.0,100530.0,0.12688688]
[1733523853057,0.35248456,100540.0,100530.0,0.12688688]
[1733523853708,0.35648456,100540.0,100530.0,0.12688688]
[1733523854146,0.26755539,100540.0,100530.0,0.12688688]
[1733523856370,0.16752588,100540.0,100530.0,0.12688688]
[1733523856794,0.16752588,100540.0,100530.0,0.15530765]
[1733523857008,0.1557378,100540.0,100530.0,0.15530765]
[1733523857225,0.0057378,100540.0,100530.0,0.20530765]
[1733523858954,0.0057378,100540.0,100530.0,0.30533716]
[1733523859169,0.08892917,100570.0,100560.0,0.0768]
[1733523859345,0.10002951,100570.0,100560.0,0.0768]
[1733523859583,0.10002951,100570.0,100560.0,0.079669]
[1733523860246,0.11169697,100570.0,100560.0,0.079669]
[1733523860447,0.26169697,100570.0,100560.0,0.079669]
[1733523861742,0.26869697,100570.0,100560.0,0.080669]
[1733523862416,0.27069697,100570.0,100560.0,0.080669]
[1733523863519,0.27065697,100570.0,100560.0,0.080669]
[1733523865916,0.27065697,100570.0,100560.0,0.0778]
[1733523868981,0.27152557,100570.0,100560.0,0.0778]
[1733523869200,0.0098686,100570.0,100560.0,0.1251]
[1733523869408,0.0098686,100570.0,100560.0,0.12797208]
[1733523871419,0.0098686,100570.0,100560.0,0.15639285]
[1733523871844,0.0098686,100570.0,100560.0,0.20639285]
[1733523881225,0.0098686,100570.0,100560.0,0.21832492]
[1733523885639,0.0098686,100570.0,100560.0,0.21332492]
[1733523891989,0.0098686,100570.0,100560.0,0.21506132]
[1733523904073,0.0098686,100570.0,100560.0,0.20312925]
[1733523907294,0.0098686,100570.0,100560.0,0.08402925]
[1733523908186,0.0008686,100570.0,100560.0,0.08302925]
[1733523908406,0.0078686,100570.0,100560.0,0.08402925]
[1733523908637,0.0098686,100570.0,100560.0,0.08302925]
[1733523909069,0.0148686,100570.0,100560.0,0.08402925]
[1733523909278,0.0168686,100570.0,100560.0,0.08402925]
[1733523910992,0.0168686,100570.0,100560.0,0.05560848]
[1733523912578,0.1056755,100570.0,100560.0,0.05560848]
[1733523914426,0.23888585,100570.0,100560.0,0.05560848]
[1733523914669,0.0168686,100570.0,100560.0,0.05560848]
[1733523914874,0.23902996,100570.0,100560.0,0.05560848]
[1733523916603,0.41675905,100570.0,100560.0,0.05560848]
[1733523917057,0.23902996,100570.0,100560.0,0.05560848]
[1733523917470,0.41675905,100570.0,100560.0,0.05560848]
[1733523920455,0.41674058,100570.0,100560.0,0.05560848]
[1733523921792,0.41674058,100570.0,100560.0,0.05060848]
[1733523922020,0.41674058,100570.0,100560.0,0.05337644]
[1733523924298,0.41674058,100570.0,100560.0,0.04837644]
[1733523926965,0.51677009,100570.0,100560.0,0.04837644]
[1733523927104,0.81822119,100570.0,100560.0,0.05011284]
[1733523927310,0.72936075,100570.0,100560.0,0.05011284]
[1733523928370,0.81822052,100570.0,100560.0,0.05011284]
[1733523930744,0.81817779,100570.0,100560.0,0.05011284]
[1733523931364,0.81817779,100570.0,100560.0,0.00450436]
[1733523931504,0.81817779,100570.0,100560.0,0.05011284]
[1733523931951,0.81817779,100570.0,100560.0,0.00450436]
[1733523932160,0.64594219,100570.0,100560.0,0.00450436]
[1733523932535,0.46823371,100570.0,100560.0,0.00450436]
[1733523932721,0.55724006,100570.0,100560.0,0.00450436]
[1733523932886,0.70724006,100570.0,100560.0,0.00450436]
[1733523933871,0.92920301,100570.0,100560.0,0.00450436]
[1733523934776,0.44067734,100570.0,100560.0,0.00450436]
[1733523935004,0.92881895,100570.0,100560.0,0.00450436]
[1733523935203,0.92881895,100570.0,100560.0,0.0017364]
[1733523935521,0.67417429,100570.0,100560.0,0.0017364]
[1733523935665,0.67417429,100570.0,100560.0,0.00447095]
[1733523937571,0.85157201,100570.0,100560.0,0.00447095]
[1733523939577,0.94043335,100570.0,100560.0,0.00447095]
[1733523939788,0.7185508,100570.0,100560.0,0.00447095]
[1733523940376,1.2656508,100570.0,100560.0,0.00447095]
[1733523940547,1.2656508,100570.0,100560.0,0.0017364]
[1733523940986,1.26536239,100570.0,100560.0,0.0017364]
[1733523941337,1.24378316,100570.0,100560.0,0.0017364]
[1733523942196,1.24378316,100570.0,100560.0,0.0044929]
[1733523942396,1.24378316,100570.0,100560.0,0.0017364]
[1733523942791,1.24378316,100570.0,100560.0,0.0044929]
[1733523943002,1.24378316,100570.0,100560.0,0.0017364]
[1733523943201,1.24378316,100570.0,100560.0,0.0044929]
[1733523943399,1.24378316,100570.0,100560.0,0.0017364]
[1733523943800,1.24378316,100570.0,100560.0,0.0044929]
[1733523944003,1.24378316,100570.0,100560.0,0.0017364]
[1733523944483,1.24378316,100570.0,100560.0,0.0044929]
[1733523945039,1.24378316,100570.0,100560.0,0.0017364]
[1733523945522,1.24817468,100570.0,100560.0,0.0017364]
[1733523945722,1.24817468,100570.0,100560.0,0.0044929]
[1733523945942,1.24817468,100570.0,100560.0,0.0017364]
[1733523946152,1.28120399,100570.0,100560.0,0.0017364]
[1733523946355,1.73904768,100570.0,100560.0,0.0017364]
[1733523946564,1.93591368,100570.0,100560.0,0.0017364]
[1733523946933,1.93991368,100570.0,100560.0,0.0017364]
[1733523947316,1.72962868,100570.0,100560.0,0.0017364]
[1733523947530,1.53476268,100570.0,100560.0,0.0017364]
[1733523947731,1.54376268,100570.0,100560.0,0.0027364]
[1733523947975,1.74262868,100570.0,100560.0,0.0027364]
[1733523948654,1.54376268,100570.0,100560.0,0.0027364]
[1733523949278,0.99666268,100570.0,100560.0,0.0027364]
[1733523949495,0.69766272,100570.0,100560.0,0.0027364]
[1733523951118,0.43210403,100570.0,100560.0,0.0027364]
[1733523951352,0.69747633,100570.0,100560.0,0.0027364]
[1733523956442,0.69741577,100570.0,100560.0,0.0027364]
[1733523956862,0.99589148,100570.0,100560.0,0.0027364]
[1733523957100,1.18764044,100570.0,100560.0,0.0027364]
[1733523957336,0.73057974,100570.0,100560.0,0.0027364]
[1733523958495,0.99590738,100570.0,100560.0,0.0027364]
[1733523959410,1.18764044,100570.0,100560.0,0.0027364]
[1733523959623,0.92944574,100570.0,100560.0,0.0027364]
[1733523960979,0.92946803,100570.0,100560.0,0.0027364]
[1733523962947,0.92507651,100570.0,100560.0,0.0027364]
[1733523967189,1.38215158,100570.0,100560.0,0.0027364]
[1733523967392,0.92507651,100570.0,100560.0,0.0027364]
[1733523968250,0.04457923,100540.0,100530.0,0.0825]
[1733523968474,0.69283918,100540.0,100530.0,0.0825]
[1733523968679,0.67125995,100540.0,100530.0,0.08531747]
[1733523968883,0.67125995,100540.0,100530.0,0.0825]
[1733523968884,0.89249908,100540.0,100530.0,0.0825]
[1733523969123,0.89249908,100540.0,100530.0,0.08531747]
[1733523969337,0.80400343,100540.0,100530.0,0.0754]
[1733523969987,0.80500343,100540.0,100530.0,0.07817489]
[1733523970623,0.81100343,100540.0,100530.0,0.0754]
[1733523970831,0.81100343,100540.0,100530.0,0.07817489]
[1733523971038,0.81100343,100540.0,100530.0,0.0754]
[1733523971245,0.81100343,100540.0,100530.0,0.07817489]
[1733523971455,0.81100343,100540.0,100530.0,0.0754]
[1733523972099,0.81100343,100540.0,100530.0,0.077137]
[1733523973001,0.81100343,100540.0,100530.0,0.07991189]
[1733523973415,1.35810343,100540.0,100530.0,0.07991189]
[1733523975550,1.22535995,100540.0,100530.0,0.07991189]
[1733523977534,1.23651279,100540.0,100530.0,0.07991189]
[1733523979025,1.32500844,100540.0,100530.0,0.07991189]
[1733523979250,1.23673927,100540.0,100530.0,0.07991189]
[1733523979507,1.23673927,100540.0,100530.0,0.077137]
[1733523979736,1.23673927,100540.0,100530.0,0.07995447]
[1733523979962,1.32500844,100540.0,100530.0,0.07995447]
[1733523980204,1.32500844,100540.0,100530.0,0.00455447]
[1733523980418,1.32500844,100540.0,100530.0,0.001737]
[1733523980419,1.10376931,100540.0,100530.0,0.001737]
[1733523985432,1.10417668,100540.0,100530.0,0.001737]
[1733523986318,1.10417668,100540.0,100530.0,0.00451496]
[1733523986535,1.10417668,100540.0,100530.0,0.001737]
[1733523990307,1.10410365,100540.0,100530.0,0.001737]
[1733523990946,1.10410365,100540.0,100530.0,0.00451649]
[1733523991165,1.10410365,100540.0,100530.0,0.001737]
[1733523994846,1.10497245,100540.0,100530.0,0.001737]
[1733523995526,1.10502185,100540.0,100530.0,0.001737]
[1733523995974,1.10502185,100540.0,100530.0,0.004517]
[1733523996396,1.10502185,100540.0,100530.0,0.001737]
[1733524001056,1.10941337,100540.0,100530.0,0.001737]
[1733524001274,1.40851791,100540.0,100530.0,0.001737]
[1733524001476,1.60091899,100540.0,100530.0,0.001737]
[1733524001916,1.43405933,100540.0,100530.0,0.001737]
[1733524002125,1.33424399,100540.0,100530.0,0.001737]
[1733524002333,1.33424399,100540.0,100530.0,0.00451904]
[1733524002514,1.79250666,100540.0,100530.0,0.00451904]
[1733524002745,1.03513945,100540.0,100530.0,0.001737]
[1733524002991,1.49239865,100540.0,100530.0,0.001737]
[1733524003196,1.48939865,100540.0,100530.0,0.001737]
[1733524003603,1.49839865,100540.0,100530.0,0.001737]
[1733524003836,1.48639865,100540.0,100530.0,0.001737]
[1733524004037,1.48939865,100540.0,100530.0,0.001737]
[1733524004242,1.49839865,100540.0,100530.0,0.001737]
[1733524007051,1.04012687,100540.0,100530.0,0.001737]
[1733524007264,0.58186767,100540.0,100530.0,0.001737]
[1733524009168,1.04012687,100540.0,100530.0,0.001737]
[1733524009374,0.58186767,100540.0,100530.0,0.001737]
[1733524011807,0.57747615,100540.0,100530.0,0.001737]
[1733524012012,0.37633652,100530.0,100520.0,0.0009772]
[1733524012212,0.51274999,100530.0,100520.0,0.0009772]
[1733524013268,0.52174999,100530.0,100520.0,0.0009772]
[1733524013687,0.52474999,100530.0,100520.0,0.0009772]
[1733524017949,0.82381057,100530.0,100520.0,0.0009772]
[1733524018541,0.86360357,100530.0,100520.0,0.0009772]
[1733524018756,0.85360357,100530.0,100520.0,0.0009772]
[1733524019413,1.11291777,100530.0,100520.0,0.0816772]
[1733524019554,0.61486557,100530.0,100520.0,0.0816772]
[1733524019751,0.58169228,100530.0,100520.0,0.0844669]
[1733524020517,0.58169228,100530.0,100520.0,0.0816772]
[1733524021414,0.88079593,100530.0,100520.0,0.0816772]
[1733524021622,0.61486557,100530.0,100520.0,0.0816772]
[1733524022604,0.88083226,100530.0,100520.0,0.1301772]
[1733524022807,0.58177168,100530.0,100520.0,0.1301772]
[1733524023356,0.58177168,100530.0,100520.0,0.1329669]
[1733524024672,1.15054014,100530.0,100520.0,0.1329669]
[1733524024879,1.12896091,100530.0,100520.0,0.1329669]
[1733524026158,1.12896091,100530.0,100520.0,0.1301772]
[1733524027061,1.42827382,100530.0,100520.0,0.1301772]
[1733524027659,1.4312103,100530.0,100520.0,0.1301772]
[1733524028799,1.4320791,100530.0,100520.0,0.13301676]
[1733524029034,1.4320791,100530.0,100520.0,0.1301772]
[1733524029249,1.00701742,100530.0,100520.0,0.1301772]
[1733524029472,1.00701742,100530.0,100520.0,0.13301676]
[1733524029732,1.00704117,100530.0,100520.0,0.13301676]
[1733524030614,0.60994117,100530.0,100520.0,0.13301676]
[1733524034793,0.60998795,100530.0,100520.0,0.13301676]
[1733524038052,0.83178787,100530.0,100520.0,0.13301676]
[1733524045009,0.83165659,100530.0,100520.0,0.13301676]
[1733524046550,0.56558654,100530.0,100520.0,0.13301676]
[1733524046755,0.83165659,100530.0,100520.0,0.13301676]
[1733524046956,0.56558654,100530.0,100520.0,0.13301676]
[1733524050115,0.56552399,100530.0,100520.0,0.13301676]
[1733524055241,0.3438615,100530.0,100520.0,0.13301676]
[1733524055444,0.56546784,100530.0,100520.0,0.1301772]
[1733524055658,0.56546784,100530.0,100520.0,0.13296793]
[1733524060473,0.83150301,100530.0,100520.0,0.13296793]
[1733524062442,0.60984778,100530.0,100520.0,0.13296793]
[1733524062660,0.56558508,100530.0,100520.0,0.13296793]
[1733524063426,0.83165338,100530.0,100520.0,0.13296793]
[1733524065514,0.6099298,100530.0,100520.0,0.13296793]
[1733524074260,0.57354584,100530.0,100520.0,0.13296793]
[1733524078944,0.55798322,100530.0,100480.0,0.53405215]
[1733524079213,0.64977974,100520.0,100490.0,0.00099491]
[1733524079644,0.08883338,100510.0,100490.0,0.00099491]
[1733524081441,0.65277974,100520.0,100490.0,0.00099491]
[1733524081647,0.64977974,100520.0,100490.0,0.00099491]
[1733524082056,0.64977974,100520.0,100510.0,0.0791]
[1733524082482,0.65277974,100520.0,100510.0,0.0791]
[1733524083726,0.67277974,100520.0,100510.0,0.0791]
[1733524084197,0.67877974,100520.0,100510.0,0.0791]
[1733524084676,0.6788865,100520.0,100510.0,0.0791]
[1733524085085,0.6788865,100520.0,100510.0,0.0808376]
[1733524085418,0.6798865,100520.0,100510.0,0.0808376]
[1733524086005,0.28002951,100520.0,100510.0,0.0808376]
[1733524086210,0.67988718,100520.0,100510.0,0.0808376]
[1733524089011,0.67988719,100520.0,100510.0,0.0808376]
[1733524089518,0.65688719,100520.0,100510.0,0.0808376]
[1733524089937,0.65691315,100520.0,100510.0,0.0808376]
[1733524090648,0.65691315,100520.0,100510.0,0.0017376]
[1733524090649,0.62718709,100520.0,100510.0,0.0017376]
[1733524090859,1.44087618,100520.0,100510.0,0.0017376]
[1733524091065,1.51863133,100520.0,100510.0,0.0017376]
[1733524091308,1.2187186,100520.0,100510.0,0.0017376]
[1733524094910,1.21855352,100520.0,100510.0,0.0017376]
[1733524097692,1.21942262,100520.0,100510.0,0.0017376]
[1733524098550,1.22997204,100520.0,100510.0,0.0017376]
[1733524099184,1.45191002,100520.0,100510.0,0.0017376]
[1733524100221,1.18548601,100520.0,100510.0,0.0017376]
[1733524100446,1.45191002,100520.0,100510.0,0.0017376]
[1733524100838,1.45190559,100520.0,100510.0,0.0017376]
[1733524104752,1.18548158,100520.0,100510.0,0.0017376]
[1733524104962,1.3630446,100520.0,100510.0,0.0017376]
[1733524105371,0.96354803,100520.0,100510.0,0.0017376]
[1733524105487,1.36306098,100520.0,100510.0,0.0017376]
[1733524105900,1.18549967,100520.0,100510.0,0.0017376]
[1733524106307,1.45184163,100520.0,100510.0,0.0017376]
[1733524107485,1.18549967,100520.0,100510.0,0.0017376]
[1733524107842,1.45184163,100520.0,100510.0,0.0017376]
[1733524108253,1.18549967,100520.0,100510.0,0.0017376]
[1733524108816,1.3630593,100520.0,100510.0,0.0017376]
[1733524108934,1.18549967,100520.0,100510.0,0.0017376]
[1733524109159,1.45184163,100520.0,100510.0,0.0017376]
[1733524109383,1.18549967,100520.0,100510.0,0.0017376]
[1733524109634,1.45184163,100520.0,100510.0,0.0017376]
[1733524109856,1.18549967,100520.0,100510.0,0.0017376]
[1733524110416,1.36306214,100520.0,100510.0,0.0017376]
[1733524110627,1.36306244,100520.0,100510.0,0.0017376]
[1733524110953,1.18550048,100520.0,100510.0,0.0017376]
[1733524111354,1.23806234,100520.0,100510.0,0.0017376]
[1733524111532,1.22751292,100520.0,100510.0,0.0777376]
[1733524111735,0.68041292,100520.0,100510.0,0.0777376]
[1733524112778,0.769194,100520.0,100510.0,0.0777376]
[1733524113810,0.68041716,100520.0,100510.0,0.0777376]
[1733524114621,0.81359576,100520.0,100510.0,0.0777376]
[1733524114826,0.81359576,100520.0,100510.0,0.0804187]
[1733524115078,0.81359576,100520.0,100510.0,0.1294187]
[1733524115278,0.81359576,100520.0,100510.0,0.1267376]
[1733524115592,0.81359576,100520.0,100510.0,0.12946753]
[1733524115927,0.90238652,100520.0,100510.0,0.12946753]
[1733524116137,0.90238481,100520.0,100510.0,0.12946753]
[1733524117347,0.53043236,100520.0,100510.0,0.12946753]
[1733524120595,0.35286626,100520.0,100510.0,0.12946753]
[1733524120934,0.53043236,100520.0,100510.0,0.12946753]
[1733524121329,0.35286626,100520.0,100510.0,0.12946753]
[1733524122380,0.22983675,100520.0,100510.0,0.12946753]
[1733524122597,0.22283675,100520.0,100510.0,0.12946753]
[1733524122958,0.22582408,100520.0,100510.0,0.12946753]
[1733524123508,0.22482408,100520.0,100510.0,0.12946753]
[1733524125984,0.22477122,100520.0,100510.0,0.12946753]
[1733524133803,0.09162995,100520.0,100510.0,0.12946753]
[1733524134229,0.09162995,100520.0,100510.0,0.00446753]
[1733524134417,0.09162995,100520.0,100510.0,0.08076753]
[1733524136370,0.09162024,100520.0,100510.0,0.08076753]
[1733524136556,0.19164975,100520.0,100510.0,0.00446753]
[1733524148418,0.32477646,100520.0,100510.0,0.00446753]
[1733524150046,0.32487028,100520.0,100510.0,0.00446753]
[1733524156178,0.50244762,100520.0,100510.0,0.00446753]
[1733524160314,0.72527791,100520.0,100510.0,0.00446753]
[1733524163221,0.63636658,100520.0,100510.0,0.00446753]
[1733524163429,0.72534707,100520.0,100510.0,0.00446753]
[1733524163902,0.72575535,100520.0,100510.0,0.00446753]
[1733524165403,0.50330651,100520.0,100510.0,0.00446753]
[1733524165580,0.50338027,100520.0,100510.0,0.00446753]
[1733524165833,0.72587009,100520.0,100510.0,0.00446753]
[1733524166595,0.50338027,100520.0,100510.0,0.00446753]
[1733524166929,0.72587009,100520.0,100510.0,0.00446753]
[1733524168167,0.50338027,100520.0,100510.0,0.00446753]
[1733524170638,0.50334965,100520.0,100510.0,0.00446753]
[1733524173139,0.86463333,100520.0,100510.0,0.00446753]
[1733524173348,0.91103333,100520.0,100510.0,0.00446753]
[1733524173549,0.9110202,100520.0,100510.0,0.00446753]
[1733524173753,0.77754965,100520.0,100510.0,0.00446753]
[1733524173964,0.59957141,100520.0,100510.0,0.00446753]
[1733524175883,0.69406598,100520.0,100510.0,0.00446753]
[1733524176093,0.91643671,100520.0,100510.0,0.00446753]
[1733524176301,0.92692984,100520.0,100510.0,0.00446753]
[1733524178600,0.79786889,100520.0,100510.0,0.00446753]
[1733524180434,0.61996247,100520.0,100510.0,0.00446753]
[1733524180873,0.66455911,100520.0,100510.0,0.00446753]
[1733524181318,0.61996342,100520.0,100510.0,0.00446753]
[1733524182059,0.79785833,100520.0,100510.0,0.00446753]
[1733524182781,0.61996342,100520.0,100510.0,0.00446753]
[1733524183892,1.3449675,100520.0,100510.0,0.00446753]
[1733524184116,1.16706342,100520.0,100510.0,0.00446753]
[1733524186514,1.14006342,100520.0,100510.0,0.00446753]
[1733524187181,1.31795004,100520.0,100510.0,0.00446753]
[1733524188273,1.14006342,100520.0,100510.0,0.00446753]
[1733524188490,1.14093202,100520.0,100510.0,0.00446753]
[1733524188706,1.18552771,100520.0,100510.0,0.00446753]
[1733524189364,1.40784906,100520.0,100510.0,0.00530027]
[1733524191973,1.18552771,100520.0,100510.0,0.00530027]
[1733524192453,1.16252771,100520.0,100510.0,0.00530027]
[1733524192905,0.61842771,100520.0,100510.0,0.00530027]
[1733524193529,0.61542771,100520.0,100510.0,0.00530027]
[1733524193731,0.61842771,100520.0,100510.0,0.00530027]
[1733524193879,0.62742771,100520.0,100510.0,0.00530027]
[1733524197351,0.84954605,100520.0,100510.0,0.00530027]
[1733524200897,0.84902279,100520.0,100510.0,0.00530027]
[1733524201904,0.58253418,100520.0,100510.0,0.00530027]
[1733524202134,0.84902279,100520.0,100510.0,0.00530027]
[1733524204911,0.84871021,100520.0,100510.0,0.00530027]
[1733524207101,0.84871021,100520.0,100510.0,0.00655027]
[1733524208330,0.62677845,100520.0,100510.0,0.00655027]
[1733524210079,0.62687655,100520.0,100510.0,0.00655027]
[1733524215030,0.62739461,100520.0,100510.0,0.00655027]
[1733524219237,0.92769567,100520.0,100510.0,0.00655027]
[1733524220192,0.92823501,100520.0,100510.0,0.00655027]
[1733524221257,0.66104693,100520.0,100510.0,0.00655027]
[1733524225407,0.6612087,100520.0,100510.0,0.00655027]
[1733524228115,0.8831737,100520.0,100510.0,0.00655027]
[1733524228331,1.04304133,100520.0,100510.0,0.00655027]
[1733524228535,0.58242534,100520.0,100510.0,0.00655027]
[1733524228744,0.63242534,100520.0,100510.0,0.00655027]
[1733524228950,1.09304133,100520.0,100510.0,0.0029876]
[1733524229167,1.53163269,100520.0,100510.0,0.0029876]
[1733524232154,1.52263269,100520.0,100510.0,0.0029876]
[1733524232333,1.52863269,100520.0,100510.0,0.0029876]
[1733524232767,1.53663269,100520.0,100510.0,0.0029876]
[1733524235173,0.55187633,100520.0,100510.0,0.0029876]
[1733524235369,0.09126034,100520.0,100510.0,0.0029876]
[1733524235576,0.13356817,100520.0,100510.0,0.0029876]
[1733524236464,0.74418416,100520.0,100510.0,0.0029876]
[1733524236679,0.24126034,100520.0,100510.0,0.0029876]
[1733524236889,0.26731876,100520.0,100510.0,0.0029876]
[1733524237545,0.72793475,100520.0,100510.0,0.0029876]
[1733524237678,0.24126034,100520.0,100510.0,0.0029876]
[1733524237899,0.26733059,100520.0,100510.0,0.00658431]
[1733524238710,0.26733059,100520.0,100510.0,0.0029876]
[1733524240191,0.26733733,100520.0,100510.0,0.0029876]
[1733524243634,0.26734236,100520.0,100510.0,0.0029876]
[1733524246436,0.34734236,100520.0,100510.0,0.0029876]
[1733524247527,0.11734236,100520.0,100510.0,0.0800876]
[1733524247740,0.13364459,100520.0,100510.0,0.0800876]
[1733524248188,0.13364459,100520.0,100510.0,0.00658431]
[1733524248622,0.13364459,100520.0,100510.0,0.0029876]
[1733524248827,0.28364459,100520.0,100510.0,0.00658431]
[1733524249084,0.26734236,100520.0,100510.0,0.00658431]
[1733524252256,0.44628118,100520.0,100510.0,0.13268431]
[1733524252477,0.74703147,100520.0,100510.0,0.13268431]
[1733524252683,0.39201063,100520.0,100510.0,0.13268431]
[1733524253082,0.38301063,100520.0,100510.0,0.13268431]
[1733524253488,0.39201063,100520.0,100510.0,0.13268431]
[1733524253647,0.53401063,100520.0,100510.0,0.13268431]
[1733524253873,0.54201063,100520.0,100510.0,0.13268431]
[1733524254520,0.53401063,100520.0,100510.0,0.13268431]
[1733524254849,0.53101063,100520.0,100510.0,0.13268431]
[1733524255042,0.54001063,100520.0,100510.0,0.13268431]
[1733524260922,0.53998927,100520.0,100510.0,0.13268431]
[1733524264298,0.50670329,100520.0,100510.0,0.13268431]
[1733524265277,0.79843222,100520.0,100510.0,0.13268431]
[1733524265546,0.80743222,100520.0,100510.0,0.13268431]
[1733524265746,0.80743222,100520.0,100510.0,0.13078431]
[1733524265992,0.79243222,100520.0,100510.0,0.13078431]
[1733524266125,0.80143222,100520.0,100510.0,0.13078431]
[1733524266332,0.50670329,100520.0,100510.0,0.12607983]
[1733524266606,0.50670329,100520.0,100510.0,0.12781643]
[1733524267020,0.50070329,100520.0,100510.0,0.12781643]
[1733524267170,0.50470329,100520.0,100510.0,0.12781643]
[1733524269827,0.23726034,100520.0,100510.0,0.12781643]
[1733524270064,0.35476876,100520.0,100510.0,0.12781643]
[1733524270272,0.61184279,100520.0,100510.0,0.12422091]
[1733524270491,0.08667893,100520.0,100510.0,0.12752363]
[1733524270724,0.02377852,100520.0,100510.0,0.23984282]
[1733524270930,0.0138686,100520.0,100510.0,0.4238216]
[1733524271127,0.0048686,100520.0,100510.0,0.60245998]
[1733524271373,0.01574549,100530.0,100520.0,0.1501]
[1733524271374,0.0008688,100530.0,100520.0,0.1501]
[1733524271589,0.0008688,100530.0,100520.0,0.15109467]
[1733524271714,0.0008688,100530.0,100520.0,0.15422737]
[1733524271917,0.0008688,100530.0,100520.0,0.1532327]
[1733524272168,0.01273197,100530.0,100520.0,0.1532327]
[1733524272374,0.01273197,100530.0,100520.0,0.15422738]
[1733524272587,0.0008688,100530.0,100520.0,0.20422738]
[1733524272757,0.0018688,100530.0,100520.0,0.2052327]
[1733524273431,0.0028688,100530.0,100520.0,0.2072327]
[1733524275294,0.01027074,100530.0,100520.0,0.2072327]
[1733524277315,0.0028688,100530.0,100520.0,0.2072327]
[1733524285422,0.01025395,100530.0,100520.0,0.2072327]
[1733524285847,0.0028688,100530.0,100520.0,0.2072327]
[1733524290155,0.01025844,100530.0,100520.0,0.2089693]
[1733524292275,0.0028688,100530.0,100520.0,0.2089693]
[1733524295304,0.0028688,100530.0,100520.0,0.1589693]
[1733524295461,0.0028688,100530.0,100520.0,0.03286394]
[1733524295661,0.0028688,100530.0,100520.0,0.0318693]
[1733524296089,0.0147092,100530.0,100520.0,0.0318693]
[1733524296294,0.0028688,100530.0,100520.0,0.0818693]
[1733524297688,0.0028688,100530.0,100520.0,0.0318693]
[1733524298202,0.0176821,100530.0,100520.0,0.0318693]
[1733524299380,0.01271531,100530.0,100520.0,0.0318693]
[1733524300327,0.11274482,100530.0,100520.0,0.0318693]
[1733524305927,0.10289831,100530.0,100520.0,0.0318693]
[1733524306130,0.11280465,100530.0,100520.0,0.0318693]
[1733524311328,0.11280465,100530.0,100520.0,0.0088693]
[1733524313852,0.11280465,100530.0,100520.0,0.0105717]
[1733524315003,0.11280465,100530.0,100520.0,0.0335717]
[1733524316420,0.20151469,100530.0,100520.0,0.0335717]
[1733524318423,0.19160835,100530.0,100520.0,0.0335717]
[1733524321568,0.20153309,100530.0,100520.0,0.0335717]
[1733524322239,0.20153229,100530.0,100520.0,0.0335717]
[1733524322702,0.11282225,100530.0,100520.0,0.0335717]
[1733524325413,0.20153229,100530.0,100520.0,0.0335717]
[1733524325658,0.11282225,100530.0,100520.0,0.12246763]
[1733524327176,0.12325322,100530.0,100520.0,0.12246763]
[1733524328862,0.12325322,100530.0,100520.0,0.12291784]
[1733524329293,0.12325321,100530.0,100520.0,0.12291784]
[1733524335822,0.12298466,100530.0,100520.0,0.12291784]
[1733524336261,0.1229881,100530.0,100520.0,0.12291784]
[1733524338837,0.1229881,100530.0,100520.0,0.19901784]
[1733524339366,0.21228242,100530.0,100520.0,0.19901784]
[1733524341601,0.1229881,100530.0,100520.0,0.33303705]
[1733524343092,0.1229881,100530.0,100520.0,0.19901784]
[1733524343305,0.12299167,100530.0,100520.0,0.19901784]
[1733524344154,0.12299167,100530.0,100520.0,0.33303003]
[1733524345021,0.12299167,100530.0,100520.0,0.51171669]
[1733524345206,0.1125607,100530.0,100520.0,0.51171669]
[1733524349364,0.1125607,100530.0,100520.0,0.51056837]
[1733524349531,0.1125607,100530.0,100520.0,0.33239207]
[1733524350222,0.10216576,100530.0,100520.0,0.33239207]
[1733524350429,0.11197542,100530.0,100520.0,0.33239207]
[1733524352103,0.11101642,100530.0,100520.0,0.33239207]
[1733524352325,0.1109676,100530.0,100520.0,0.33239207]
[1733524353591,0.01093809,100530.0,100520.0,0.33239207]
[1733524353820,0.01093721,100530.0,100520.0,0.33239207]
[1733524355233,0.00993721,100530.0,100520.0,0.33039207]
[1733524355631,0.00992674,100530.0,100520.0,0.32839207]
[1733524355775,0.01092674,100530.0,100520.0,0.33539207]
[1733524356002,0.01192674,100530.0,100520.0,0.34439207]
[1733524356253,0.01192674,100530.0,100520.0,0.33739207]
[1733524356426,0.01092674,100530.0,100520.0,0.33739207]
[1733524357391,0.01092626,100530.0,100520.0,0.33739207]
[1733524357910,0.01192626,100530.0,100520.0,0.34539207]